[Event "Croatian-ch Youth U13 2022"]
[Site "Trogir"]
[Date "2022.06.22"]
[Round "2.9"]
[White "Paulic, Franka"]
[Black "Hajdinic, Ema"]
[Result "0-1"]
[ECO "B45"]
[WhiteElo "1067"]
[BlackElo "1535"]
[Annotator "NA RC"]
[PlyCount "122"]
[EventDate "2022.06.22"]
[EventType "swiss"]
[EventCountry "CRO"]
[SourceTitle "playchess.com"]
[Source "ChessBase"]
[SourceQuality "1"]
[TimeControl "5400+30"]

1. e4 {[%emt 0:00:01]} c5 {[%emt 0:00:04]} 2. Nf3 {[%emt 0:00:06]} e6 {[%emt 0:00:05]} 3. Nc3 {[%emt 0:00:05]} Nc6 {[%emt 0:00:08]} 4. d4 {[%emt 0:01:06]} cxd4 {[%emt 0:00:05]} 5. Nxd4 {[%emt 0:00:06]} Nf6 {[%emt 0:00:03]} 6. Nxc6 {[%emt 0:00:09]} bxc6 {[%emt 0:00:04]} 7. e5 {[%emt 0:00:24]} Nd5 {[%emt 0:00:05]} 8. Ne4 {[%emt 0:00:19]} Qc7 {[%emt 0:00:28]} 9. f4 {[%emt 0:03:28]} Bb4+ {[%emt 0:11:19]} 10. Bd2 {[%emt 0:04:26]} Qb6 {[%emt 0:09:11]} 11. c3 {[%emt 0:06:02]} Be7 {[%emt 0:06:55]} 12. Rb1 {[%emt 0:03:45]} Ne3 {[%emt 0:02:56]} 13. Qc1 {[%emt 0:00:17]} Nxf1 {[%emt 0:00:22]} 14. Rxf1 {[%emt 0:00:20]} Ba6 {[%emt 0:00:10]} 15. Rf2 {[%emt 0:19:37]} Bd3 {[%emt 0:00:16]} 16. Be3 {[%emt 0:01:59]} Qb8 {[%emt 0:01:42]} 17. Ra1 {[%emt 0:05:39]} Bxe4 {[%emt 0:00:07]} 18. Qd1 {[%emt 0:00:58]} Qb5 {[%emt 0:01:06]} 19. Rd2 {[%emt 0:03:25]} O-O {[%emt 0:00:55]} 20. Qg4 {[%emt 0:01:54]} Bc5 {[%emt 0:01:54]} 21. Bd4 {[%emt 0:01:24]} Bxd4 {[%emt 0:00:26]} 22. cxd4 {[%emt 0:01:45]} Qd5 {[%emt 0:00:55]} 23. b3 {[%emt 0:00:55]} Bf5 {[%emt 0:00:58]} 24. Qg3 {[%emt 0:00:29]} Qe4+ {[%emt 0:00:38]} 25. Kf1 {[%emt 0:01:11]} f6 {[%emt 0:00:33]} 26. Re1 {[%emt 0:00:44]} Qd5 {[%emt 0:00:18]} 27. Qc3 {[%emt 0:01:19]} Qb5+ {[%emt 0:00:20]} 28. Kg1 {[%emt 0:00:22]} Rab8 {[%emt 0:01:39]} 29. h3 {[%emt 0:01:39]} Rbc8 {[%emt 0:02:28]} 30. g4 {[%emt 0:00:44]} Bg6 {[%emt 0:01:35]} 31. Rf2 {[%emt 0:00:37]} f5 {[%emt 0:00:19]} 32. g5 {[%emt 0:00:44]} c5 {[%emt 0:00:15]} 33. Qd2 {[%emt 0:02:00]} Qb4 {[%emt 0:00:29]} 34. Qxb4 {[%emt 0:00:56]} cxb4 {[%emt 0:00:05]} 35. Rd2 {[%emt 0:00:27]} Rc3 {[%emt 0:00:11]} 36. Kg2 {[%emt 0:00:09]} Rfc8 {[%emt 0:00:05]} 37. Ree2 {[%emt 0:00:05]} Bh5 {[%emt 0:00:45]} 38. Rf2 {[%emt 0:00:06]} Re3 {[%emt 0:01:30]} 39. Rc2 {[%emt 0:00:56]} Rcc3 {[%emt 0:00:20]} 40. h4 {[%emt 0:00:29]} Rxc2 {[%emt 0:00:20]} 41. Rxc2 {[%emt 0:00:03]} Re2+ {[%emt 0:00:05]} 42. Rxe2 {[%emt 0:00:02]} Bxe2 {[%emt 0:00:04]} 43. Kf2 {[%emt 0:00:14]} Bb5 {[%emt 0:00:06]} 44. Ke3 {[%emt 0:00:07]} Kf7 {[%emt 0:00:13]} 45. Kd2 {[%emt 0:00:22]} Kg6 {[%emt 0:00:06]} 46. Kc2 {[%emt 0:00:32]} Kh5 {[%emt 0:00:08]} 47. Kb2 {[%emt 0:00:01]} Kxh4 {[%emt 0:00:11]} 48. a3 {[%emt 0:00:02]} a5 {[%emt 0:00:09]} 49. axb4 {[%emt 0:00:08]} axb4 {[%emt 0:00:04]} 50. Kc2 {[%emt 0:00:02]} Kg4 {[%emt 0:00:11]} 51. Kd2 {[%emt 0:00:02]} h6 {[%emt 0:00:10]} 52. Ke1 {[%emt 0:00:30]} hxg5 {[%emt 0:00:09]} 53. fxg5 {[%emt 0:00:05]} Kxg5 {[%emt 0:00:04]} 54. Kf2 {[%emt 0:00:02]} Kh4 {[%emt 0:00:08]} 55. Kg2 {[%emt 0:00:04]} g5 {[%emt 0:00:05]} 56. Kh2 {[%emt 0:00:02]} f4 {[%emt 0:00:09]} 57. d5 {[%emt 0:00:03]} f3 {[%emt 0:00:12]} 58. d6 {[%emt 0:00:09]} f2 {[%emt 0:00:20]} 59. Kg2 {[%emt 0:00:09]} f1=Q+ {[%emt 0:00:05]} 60. Kh2 {[%emt 0:00:04]} Qf2+ {[%emt 0:00:04]} 61. Kh1 {[%emt 0:00:03]} Bc6# {[%emt 0:00:01]} 0-1

[Event "Croatian-ch Youth U13 2022"]
[Site "Trogir"]
[Date "2022.06.22"]
[Round "2.10"]
[White "Zagorac, Lara"]
[Black "Fiolic, Ivana"]
[Result "1-0"]
[ECO "D02"]
[WhiteElo "1482"]
[BlackElo "1053"]
[Annotator "NA RC"]
[PlyCount "93"]
[EventDate "2022.06.22"]
[EventType "swiss"]
[EventCountry "CRO"]
[SourceTitle "playchess.com"]
[Source "ChessBase"]
[SourceQuality "1"]
[TimeControl "5400+30"]

1. d4 {[%emt 0:00:02]} d5 {[%emt 0:00:07]} 2. Nf3 {[%emt 0:00:08]} Nf6 {[%emt 0:00:16]} 3. Bf4 {[%emt 0:00:11]} e6 {[%emt 0:00:17]} 4. e3 {[%emt 0:00:11]} c5 {[%emt 0:00:11]} 5. Nbd2 {[%emt 0:00:31]} Nc6 {[%emt 0:00:14]} 6. c3 {[%emt 0:00:30]} Be7 {[%emt 0:00:40]} 7. Bd3 {[%emt 0:00:24]} O-O {[%emt 0:00:26]} 8. O-O {[%emt 0:00:11]} b6 {[%emt 0:01:06]} 9. e4 {[%emt 0:00:59]} dxe4 {[%emt 0:01:25]} 10. Nxe4 {[%emt 0:00:27]} cxd4 {[%emt 0:00:24]} 11. Nxd4 {[%emt 0:01:43]} Bb7 {[%emt 0:01:08]} 12. Nxf6+ {[%emt 0:00:47]} Bxf6 {[%emt 0:00:12]} 13. Nxc6 {[%emt 0:00:25]} Bxc6 {[%emt 0:00:11]} 14. Qc2 {[%emt 0:01:17]} h6 {[%emt 0:01:01]} 15. Rad1 {[%emt 0:01:57]} Qe7 {[%emt 0:01:15]} 16. Bd6 {[%emt 0:02:57]} Qe8 {[%emt 0:01:03]} 17. Bxf8 {[%emt 0:00:16]} Qxf8 {[%emt 0:00:10]} 18. Be4 {[%emt 0:00:32]} Bxe4 {[%emt 0:00:47]} 19. Qxe4 {[%emt 0:00:27]} Rd8 {[%emt 0:02:54]} 20. Qe2 {[%emt 0:00:56]} Rxd1 {[%emt 0:03:28]} 21. Rxd1 {[%emt 0:00:22]} Qc5 {[%emt 0:00:35]} 22. Qe3 {[%emt 0:02:17]} Qxe3 {[%emt 0:00:35]} 23. fxe3 {[%emt 0:00:07]} Kf8 {[%emt 0:00:17]} 24. Rd7 {[%emt 0:00:20]} a5 {[%emt 0:00:11]} 25. Rd1 {[%emt 0:01:38]} Ke7 {[%emt 0:00:12]} 26. Kf2 {[%emt 0:00:08]} Bg5 {[%emt 0:00:26]} 27. Rd3 {[%emt 0:00:32]} f5 {[%emt 0:00:35]} 28. Ke2 {[%emt 0:00:32]} g6 {[%emt 0:00:26]} 29. g3 {[%emt 0:00:25]} h5 {[%emt 0:00:09]} 30. b4 {[%emt 0:00:48]} axb4 {[%emt 0:00:12]} 31. cxb4 {[%emt 0:00:11]} h4 {[%emt 0:00:13]} 32. a4 {[%emt 0:00:22]} hxg3 {[%emt 0:00:31]} 33. hxg3 {[%emt 0:00:07]} Ke8 {[%emt 0:00:29]} 34. Rd6 {[%emt 0:00:20]} Kf7 {[%emt 0:02:08]} 35. Rxb6 {[%emt 0:00:14]} e5 {[%emt 0:00:18]} 36. a5 {[%emt 0:00:15]} Bd8 {[%emt 0:00:18]} 37. Rb7+ {[%emt 0:00:12]} Kf6 {[%emt 0:00:16]} 38. a6 {[%emt 0:00:06]} g5 {[%emt 0:00:18]} 39. a7 {[%emt 0:00:07]} f4 {[%emt 0:00:20]} 40. a8=Q {[%emt 0:00:29]} Be7 {[%emt 0:00:25]} 41. Qe8 {[%emt 0:00:20]} fxg3 {[%emt 0:00:14]} 42. Rxe7 {[%emt 0:00:19]} Kf5 {[%emt 0:00:12]} 43. Rxe5+ {[%emt 0:00:13]} Kf6 {[%emt 0:00:19]} 44. Qe6+ {[%emt 0:00:15]} Kg7 {[%emt 0:00:09]} 45. Rf5 {[%emt 0:00:14]} Kh8 {[%emt 0:00:11]} 46. Qe7 {[%emt 0:00:25]} g4 {[%emt 0:00:09]} 47. Rf8# {[%emt 0:00:09]} 1-0

[Event "Croatian-ch Youth U13 2022"]
[Site "Trogir"]
[Date "2022.06.23"]
[Round "3.1"]
[White "Pehar, Borna"]
[Black "Mandaric, Duje"]
[Result "1-0"]
[ECO "B13"]
[WhiteElo "1756"]
[BlackElo "1333"]
[Annotator "NA RC"]
[PlyCount "73"]
[EventDate "2022.06.22"]
[EventType "swiss"]
[EventCountry "CRO"]
[SourceTitle "playchess.com"]
[Source "ChessBase"]
[SourceQuality "1"]
[TimeControl "5400+30"]

1. e4 {[%emt 0:00:05]} c6 {[%emt 0:00:44]} 2. d4 {[%emt 0:00:10]} d5 {[%emt 0:00:05]} 3. exd5 {[%emt 0:00:13]} cxd5 {[%emt 0:00:07]} 4. Bd3 {[%emt 0:00:30]} Nc6 {[%emt 0:00:08]} 5. c3 {[%emt 0:00:08]} Qc7 {[%emt 0:00:22]} 6. Ne2 {[%emt 0:01:02]} e6 {[%emt 0:01:16]} 7. Bf4 {[%emt 0:01:01]} Bd6 {[%emt 0:00:18]} 8. Bxd6 {[%emt 0:01:01]} Qxd6 {[%emt 0:00:07]} 9. O-O {[%emt 0:00:35]} Nf6 {[%emt 0:00:43]} 10. Nd2 {[%emt 0:00:35]} a6 {[%emt 0:02:17]} 11. a4 {[%emt 0:01:23]} O-O {[%emt 0:00:53]} 12. a5 {[%emt 0:08:26]} Qc7 {[%emt 0:02:34]} 13. b4 {[%emt 0:06:53]} Nd7 {[%emt 0:06:17]} 14. Qc2 {[%emt 0:01:04]} h6 {[%emt 0:03:58]} 15. f4 {[%emt 0:03:24]} b6 {[%emt 0:00:00]} 16. Nb3 {[%emt 0:01:03]} Bb7 {[%emt 0:02:15]} 17. axb6 {[%emt 0:05:14]} Qxb6 {[%emt 0:01:00]} 18. Nc5 {[%emt 0:00:33]} Nxc5 {[%emt 0:01:21]} 19. bxc5 {[%emt 0:01:21]} Qc7 {[%emt 0:00:44]} 20. Rfb1 {[%emt 0:04:00]} a5 {[%emt 0:04:47]} 21. Rb6 {[%emt 0:00:32]} Rfb8 {[%emt 0:00:25]} 22. Qa4 {[%emt 0:01:00]} Ne7 {[%emt 0:03:14]} 23. Rab1 {[%emt 0:00:35]} g6 {[%emt 0:04:51]} 24. Qb5 {[%emt 0:00:55]} Ra7 {[%emt 0:02:01]} 25. c6 {[%emt 0:00:34]} Nxc6 {[%emt 0:02:02]} 26. Rxc6 {[%emt 0:00:15]} Qxc6 {[%emt 0:00:59]} 27. Qxc6 {[%emt 0:00:13]} Bxc6 {[%emt 0:00:14]} 28. Rxb8+ {[%emt 0:00:03]} Kg7 {[%emt 0:00:14]} 29. Rb6 {[%emt 0:02:00]} Bb7 {[%emt 0:00:23]} 30. Rb3 {[%emt 0:00:19]} a4 {[%emt 0:00:37]} 31. Ra3 {[%emt 0:00:02]} Bc6 {[%emt 0:00:43]} 32. Kf2 {[%emt 0:01:42]} Rb7 {[%emt 0:00:22]} 33. Bc2 {[%emt 0:00:46]} Rb5 {[%emt 0:01:08]} 34. Rxa4 {[%emt 0:05:40]} Rb2 {[%emt 0:00:14]} 35. Ra6 {[%emt 0:00:15]} Bb5 {[%emt 0:00:06]} 36. Rb6 {[%emt 0:00:09]} Rxc2 {[%emt 0:01:41]} 37. Rxb5 {[%emt 0:02:37]} 1-0

[Event "Croatian-ch Youth U13 2022"]
[Site "Trogir"]
[Date "2022.06.23"]
[Round "3.2"]
[White "Solin, Borna"]
[Black "Poljan, Max"]
[Result "0-1"]
[ECO "D00"]
[WhiteElo "1324"]
[BlackElo "1618"]
[Annotator "NA RC"]
[PlyCount "102"]
[EventDate "2022.06.22"]
[EventType "swiss"]
[EventCountry "CRO"]
[SourceTitle "playchess.com"]
[Source "ChessBase"]
[SourceQuality "1"]
[TimeControl "5400+30"]

1. d4 {[%emt 0:00:04]} Nf6 {[%emt 0:00:06]} 2. Nc3 {[%emt 0:00:11]} d5 {[%emt 0:00:04]} 3. Bf4 {[%emt 0:00:07]} e6 {[%emt 0:00:48]} 4. e3 {[%emt 0:01:40]} a6 {[%emt 0:00:23]} 5. Nf3 {[%emt 0:00:25]} c5 {[%emt 0:00:21]} 6. Ne5 {[%emt 0:05:52]} Nc6 {[%emt 0:03:28]} 7. Nxc6 {[%emt 0:03:26]} bxc6 {[%emt 0:00:10]} 8. Be2 {[%emt 0:03:13]} cxd4 {[%emt 0:10:41]} 9. exd4 {[%emt 0:00:49]} c5 {[%emt 0:01:40]} 10. O-O {[%emt 0:02:32]} Bd7 {[%emt 0:00:24]} 11. Re1 {[%emt 0:08:27]} Qb6 {[%emt 0:01:09]} 12. Bf3 {[%emt 0:07:25]} Bc6 {[%emt 0:12:59]} 13. Be5 {[%emt 0:05:21]} Rd8 {[%emt 0:04:27]} 14. Rb1 {[%emt 0:02:35]} cxd4 {[%emt 0:02:44]} 15. Bxd4 {[%emt 0:00:44]} Bc5 {[%emt 0:00:17]} 16. Bxc5 {[%emt 0:00:44]} Qxc5 {[%emt 0:00:04]} 17. Qd3 {[%emt 0:02:34]} a5 {[%emt 0:01:13]} 18. Rbd1 {[%emt 0:01:57]} O-O {[%emt 0:05:01]} 19. Qd4 {[%emt 0:01:55]} Qxd4 {[%emt 0:02:35]} 20. Rxd4 {[%emt 0:00:08]} Rfe8 {[%emt 0:03:16]} 21. Rdd1 {[%emt 0:01:41]} Rb8 {[%emt 0:01:43]} 22. Rb1 {[%emt 0:00:47]} Rec8 {[%emt 0:00:29]} 23. a3 {[%emt 0:01:06]} d4 {[%emt 0:01:46]} 24. Ne4 {[%emt 0:02:45]} Nxe4 {[%emt 0:04:21]} 25. Bxe4 {[%emt 0:00:16]} Bxe4 {[%emt 0:00:25]} 26. Rxe4 {[%emt 0:00:06]} d3 {[%emt 0:00:21]} 27. cxd3 {[%emt 0:00:20]} Rxb2 {[%emt 0:00:05]} 28. Ree1 {[%emt 0:01:14]} Rd2 {[%emt 0:00:09]} 29. Rb3 {[%emt 0:01:11]} g6 {[%emt 0:00:30]} 30. Rf1 {[%emt 0:02:57]} Ra2 {[%emt 0:00:13]} 31. d4 {[%emt 0:04:29]} Rc4 {[%emt 0:00:59]} 32. Rd1 {[%emt 0:00:49]} Rxd4 {[%emt 0:00:05]} 33. Rf1 {[%emt 0:01:17]} Ra4 {[%emt 0:00:04]} 34. Rb8+ {[%emt 0:01:04]} Kg7 {[%emt 0:00:06]} 35. Rb5 {[%emt 0:00:32]} R4xa3 {[%emt 0:00:10]} 36. g3 {[%emt 0:00:14]} Ra1 {[%emt 0:00:31]} 37. Kg2 {[%emt 0:00:42]} a4 {[%emt 0:00:13]} 38. Ra5 {[%emt 0:00:07]} Rxf1 {[%emt 0:00:27]} 39. Kxf1 {[%emt 0:00:07]} Ra1+ {[%emt 0:00:06]} 40. Ke2 {[%emt 0:00:11]} a3 {[%emt 0:00:07]} 41. Kf3 {[%emt 0:00:08]} a2 {[%emt 0:00:14]} 42. h4 {[%emt 0:00:27]} h5 {[%emt 0:00:21]} 43. Kf4 {[%emt 0:00:12]} Kf6 {[%emt 0:00:07]} 44. f3 {[%emt 0:00:19]} e5+ {[%emt 0:00:16]} 45. Rxe5 {[%emt 0:00:43]} Rb1 {[%emt 0:00:05]} 46. g4 {[%emt 0:00:18]} a1=Q {[%emt 0:00:13]} 47. g5+ {[%emt 0:00:11]} Kg7 {[%emt 0:00:09]} 48. Re7 {[%emt 0:00:17]} Qd4+ {[%emt 0:00:05]} 49. Kg3 {[%emt 0:00:10]} Rg1+ {[%emt 0:00:07]} 50. Kh2 {[%emt 0:00:05]} Qf2+ {[%emt 0:00:05]} 51. Kh3 {[%emt 0:00:06]} Qg3# {[%emt 0:00:07]} 0-1

[Event "Croatian-ch Youth U13 2022"]
[Site "Trogir"]
[Date "2022.06.23"]
[Round "3.3"]
[White "Tadic, Jure"]
[Black "Radalj, Niko"]
[Result "1/2-1/2"]
[ECO "B90"]
[WhiteElo "1565"]
[BlackElo "1179"]
[Annotator "NA RC"]
[PlyCount "60"]
[EventDate "2022.06.22"]
[EventType "swiss"]
[EventCountry "CRO"]
[SourceTitle "playchess.com"]
[Source "ChessBase"]
[SourceQuality "1"]
[TimeControl "5400+30"]

1. e4 {[%emt 0:00:03]} c5 {[%emt 0:00:11]} 2. Nf3 {[%emt 0:00:12]} d6 {[%emt 0:00:06]} 3. d4 {[%emt 0:00:14]} cxd4 {[%emt 0:00:07]} 4. Nxd4 {[%emt 0:00:04]} Nf6 {[%emt 0:00:08]} 5. Nc3 {[%emt 0:00:15]} a6 {[%emt 0:00:06]} 6. f3 {[%emt 0:00:26]} e5 {[%emt 0:00:24]} 7. Nb3 {[%emt 0:00:16]} Be6 {[%emt 0:00:07]} 8. Be3 {[%emt 0:00:25]} h5 {[%emt 0:00:29]} 9. Nd5 {[%emt 0:00:57]} Bxd5 {[%emt 0:00:06]} 10. exd5 {[%emt 0:00:12]} Nbd7 {[%emt 0:00:21]} 11. Qd2 {[%emt 0:01:12]} g6 {[%emt 0:00:35]} 12. Be2 {[%emt 0:01:32]} Bg7 {[%emt 0:00:18]} 13. O-O {[%emt 0:02:19]} b6 {[%emt 0:01:03]} 14. c4 {[%emt 0:16:52]} O-O {[%emt 0:00:41]} 15. Bh6 {[%emt 0:02:25]} a5 {[%emt 0:02:30]} 16. Bxg7 {[%emt 0:12:39]} Kxg7 {[%emt 0:00:59]} 17. f4 {[%emt 0:00:10]} exf4 {[%emt 0:07:37]} 18. Qxf4 {[%emt 0:00:28]} Qe7 {[%emt 0:04:24]} 19. Rae1 {[%emt 0:06:27]} Ne5 {[%emt 0:02:04]} 20. Nd4 {[%emt 0:03:13]} Rac8 {[%emt 0:03:29]} 21. Qg5 {[%emt 0:01:03]} Qd8 {[%emt 0:01:54]} 22. Nf5+ {[%emt 0:15:29]} Kg8 {[%emt 0:01:23]} 23. Nxd6 {[%emt 0:00:27]} Qxd6 {[%emt 0:03:04]} 24. Rxf6 {[%emt 0:00:09]} Qc5+ {[%emt 0:00:05]} 25. Kh1 {[%emt 0:00:18]} Rce8 {[%emt 0:02:15]} 26. Rg1 {[%emt 0:18:48]} Nd7 {[%emt 0:03:26]} 27. Rc6 {[%emt 0:00:49]} Qf2 {[%emt 0:00:15]} 28. Bd3 {[%emt 0:10:35]} Ne5 {[%emt 0:01:46]} 29. Bxg6 {[%emt 0:02:56]} Nxg6 {[%emt 0:00:18]} 30. Rxg6+ {[%emt 0:00:07]} fxg6 {[%emt 0:00:08]} 1/2-1/2

[Event "Croatian-ch Youth U13 2022"]
[Site "Trogir"]
[Date "2022.06.23"]
[Round "3.4"]
[White "Radic, Borna"]
[Black "Delibasic, Dominik"]
[Result "1/2-1/2"]
[ECO "E46"]
[WhiteElo "1289"]
[BlackElo "1523"]
[Annotator "NA RC"]
[PlyCount "83"]
[EventDate "2022.06.22"]
[EventType "swiss"]
[EventCountry "CRO"]
[SourceTitle "playchess.com"]
[Source "ChessBase"]
[SourceQuality "1"]
[TimeControl "5400+30"]

1. d4 {[%emt 0:00:02]} Nf6 {[%emt 0:00:06]} 2. c4 {[%emt 0:00:04]} e6 {[%emt 0:00:07]} 3. Nc3 {[%emt 0:00:08]} Bb4 {[%emt 0:00:06]} 4. e3 {[%emt 0:00:05]} d5 {[%emt 0:03:28]} 5. Bd2 {[%emt 0:04:13]} O-O {[%emt 0:04:10]} 6. a3 {[%emt 0:00:57]} Bxc3 {[%emt 0:00:22]} 7. Bxc3 {[%emt 0:00:10]} b6 {[%emt 0:01:12]} 8. Nf3 {[%emt 0:00:56]} Nbd7 {[%emt 0:00:44]} 9. cxd5 {[%emt 0:00:20]} exd5 {[%emt 0:00:20]} 10. Bd3 {[%emt 0:01:11]} c5 {[%emt 0:01:07]} 11. O-O {[%emt 0:00:28]} h6 {[%emt 0:01:47]} 12. Qc2 {[%emt 0:03:21]} Bb7 {[%emt 0:04:38]} 13. Rac1 {[%emt 0:03:37]} Rc8 {[%emt 0:03:34]} 14. Qe2 {[%emt 0:01:31]} Ne4 {[%emt 0:08:09]} 15. Nd2 {[%emt 0:10:04]} Ndf6 {[%emt 0:04:12]} 16. Nxe4 {[%emt 0:02:44]} Nxe4 {[%emt 0:01:49]} 17. Bxe4 {[%emt 0:00:41]} dxe4 {[%emt 0:00:10]} 18. Rfd1 {[%emt 0:00:32]} Qe8 {[%emt 0:09:12]} 19. dxc5 {[%emt 0:01:55]} bxc5 {[%emt 0:00:19]} 20. Qg4 {[%emt 0:01:27]} g6 {[%emt 0:12:03]} 21. Qf4 {[%emt 0:05:27]} Kh7 {[%emt 0:00:24]} 22. h4 {[%emt 0:02:53]} Rc6 {[%emt 0:07:52]} 23. Qe5 {[%emt 0:06:19]} Qxe5 {[%emt 0:16:07]} 24. Bxe5 {[%emt 0:00:07]} Ba6 {[%emt 0:07:14]} 25. Rd6 {[%emt 0:01:15]} Rfc8 {[%emt 0:01:34]} 26. Rxc6 {[%emt 0:01:26]} Rxc6 {[%emt 0:00:30]} 27. Bb8 {[%emt 0:00:48]} Bd3 {[%emt 0:00:22]} 28. Bxa7 {[%emt 0:01:33]} c4 {[%emt 0:00:17]} 29. Bd4 {[%emt 0:00:21]} Ra6 {[%emt 0:00:41]} 30. Kh2 {[%emt 0:00:40]} f5 {[%emt 0:01:14]} 31. Ra1 {[%emt 0:00:10]} Bc2 {[%emt 0:01:23]} 32. Rc1 {[%emt 0:00:34]} Bd3 {[%emt 0:00:07]} 33. Rc3 {[%emt 0:00:34]} g5 {[%emt 0:01:44]} 34. hxg5 {[%emt 0:01:40]} hxg5 {[%emt 0:00:12]} 35. Bc5 {[%emt 0:00:25]} Rc6 {[%emt 0:00:56]} 36. Bb4 {[%emt 0:00:15]} f4 {[%emt 0:00:44]} 37. exf4 {[%emt 0:05:28]} gxf4 {[%emt 0:00:11]} 38. Rc1 {[%emt 0:01:56]} e3 {[%emt 0:00:16]} 39. fxe3 {[%emt 0:02:18]} fxe3 {[%emt 0:00:21]} 40. Re1 {[%emt 0:01:02]} e2 {[%emt 0:00:08]} 41. Bc3 {[%emt 0:00:58]} Kg6 {[%emt 0:00:34]} 42. Kg3 {[%emt 0:00:22]} 1/2-1/2

[Event "Croatian-ch Youth U13 2022"]
[Site "Trogir"]
[Date "2022.06.23"]
[Round "3.5"]
[White "Petrus, Adrian"]
[Black "Hranilovic, Renato"]
[Result "1-0"]
[ECO "B51"]
[WhiteElo "1526"]
[BlackElo "1104"]
[Annotator "NA RC"]
[PlyCount "101"]
[EventDate "2022.06.22"]
[EventType "swiss"]
[EventCountry "CRO"]
[SourceTitle "playchess.com"]
[Source "ChessBase"]
[SourceQuality "1"]
[TimeControl "5400+30"]

1. e4 {[%emt 0:00:30]} c5 {[%emt 0:00:09]} 2. Nf3 {[%emt 0:00:00]} Nc6 {[%emt 0:00:18]} 3. Bb5 {[%emt 0:00:39]} d6 {[%emt 0:00:45]} 4. c4 {[%emt 0:00:18]} e5 {[%emt 0:00:16]} 5. h3 {[%emt 0:00:37]} f5 {[%emt 0:00:39]} 6. Nc3 {[%emt 0:03:35]} Nf6 {[%emt 0:01:16]} 7. exf5 {[%emt 0:03:52]} Bxf5 {[%emt 0:00:15]} 8. d3 {[%emt 0:00:59]} g6 {[%emt 0:01:01]} 9. Bg5 {[%emt 0:00:39]} Bg7 {[%emt 0:01:02]} 10. O-O {[%emt 0:00:13]} O-O {[%emt 0:00:14]} 11. Ne4 {[%emt 0:00:55]} h6 {[%emt 0:02:26]} 12. Nxf6+ {[%emt 0:01:14]} Bxf6 {[%emt 0:00:20]} 13. Bxh6 {[%emt 0:00:56]} Rf7 {[%emt 0:01:03]} 14. Qd2 {[%emt 0:01:16]} Rh7 {[%emt 0:01:45]} 15. Bg5 {[%emt 0:00:32]} Bxg5 {[%emt 0:00:28]} 16. Nxg5 {[%emt 0:00:56]} Rh5 {[%emt 0:01:57]} 17. Bxc6 {[%emt 0:03:31]} bxc6 {[%emt 0:00:22]} 18. Ne4 {[%emt 0:01:20]} Bxe4 {[%emt 0:01:02]} 19. dxe4 {[%emt 0:00:10]} g5 {[%emt 0:01:39]} 20. Rad1 {[%emt 0:01:01]} Rb8 {[%emt 0:02:41]} 21. b3 {[%emt 0:00:18]} Rh6 {[%emt 0:00:40]} 22. Qe3 {[%emt 0:02:29]} Kg7 {[%emt 0:01:54]} 23. Rd2 {[%emt 0:00:00]} Kh7 {[%emt 0:00:29]} 24. Qg3 {[%emt 0:00:00]} Qf6 {[%emt 0:00:51]} 25. Rfd1 {[%emt 0:00:00]} Rd8 {[%emt 0:00:18]} 26. Rd3 {[%emt 0:00:04]} Qg6 {[%emt 0:00:57]} 27. Qe3 {[%emt 0:02:35]} Qh5 {[%emt 0:02:28]} 28. g4 {[%emt 0:01:19]} Qg6 {[%emt 0:00:44]} 29. Kg2 {[%emt 0:00:35]} Rh4 {[%emt 0:01:33]} 30. Re1 {[%emt 0:01:11]} Rf8 {[%emt 0:00:58]} 31. Qd2 {[%emt 0:00:34]} Rf6 {[%emt 0:00:37]} 32. Qa5 {[%emt 0:00:25]} Qf7 {[%emt 0:00:54]} 33. Re2 {[%emt 0:00:27]} Qb7 {[%emt 0:04:44]} 34. Qd8 {[%emt 0:01:18]} Rhh6 {[%emt 0:00:20]} 35. Red2 {[%emt 0:00:43]} Qf7 {[%emt 0:01:23]} 36. Rxd6 {[%emt 0:00:49]} Rf3 {[%emt 0:00:40]} 37. Rxh6+ {[%emt 0:01:11]} Kxh6 {[%emt 0:00:14]} 38. Qh8+ {[%emt 0:00:25]} Kg6 {[%emt 0:00:16]} 39. Rd6+ {[%emt 0:02:07]} Rf6 {[%emt 0:00:20]} 40. Qh5+ {[%emt 0:00:43]} Kg7 {[%emt 0:00:22]} 41. Qxg5+ {[%emt 0:00:13]} Rg6 {[%emt 0:00:27]} 42. Qxe5+ {[%emt 0:00:38]} Rf6 {[%emt 0:00:29]} 43. g5 {[%emt 0:00:22]} Qg6 {[%emt 0:00:26]} 44. Qxf6+ {[%emt 0:00:19]} Qxf6 {[%emt 0:00:15]} 45. Rxf6 {[%emt 0:00:07]} a5 {[%emt 0:00:17]} 46. e5 {[%emt 0:00:07]} a4 {[%emt 0:00:25]} 47. e6 {[%emt 0:00:08]} axb3 {[%emt 0:00:10]} 48. axb3 {[%emt 0:00:01]} Kg8 {[%emt 0:00:23]} 49. Rf7 {[%emt 0:00:15]} Kh8 {[%emt 0:00:12]} 50. e7 {[%emt 0:00:07]} Kg8 {[%emt 0:00:11]} 51. e8=Q# {[%emt 0:00:18]} 1-0

[Event "Croatian-ch Youth U13 2022"]
[Site "Trogir"]
[Date "2022.06.23"]
[Round "3.9"]
[White "Hajdinic, Ema"]
[Black "Zagar, Lara Marija"]
[Result "1-0"]
[ECO "B22"]
[WhiteElo "1535"]
[BlackElo "1272"]
[Annotator "NA RC"]
[PlyCount "83"]
[EventDate "2022.06.22"]
[EventType "swiss"]
[EventCountry "CRO"]
[SourceTitle "playchess.com"]
[Source "ChessBase"]
[SourceQuality "1"]
[TimeControl "5400+30"]

1. e4 {[%emt 0:00:02]} c5 {[%emt 0:00:05]} 2. c3 {[%emt 0:00:05]} d6 {[%emt 0:00:05]} 3. d4 {[%emt 0:00:07]} Nd7 {[%emt 0:00:05]} 4. Nf3 {[%emt 0:00:19]} g6 {[%emt 0:00:06]} 5. Be3 {[%emt 0:00:18]} Bg7 {[%emt 0:00:10]} 6. Bb5 {[%emt 0:00:56]} a6 {[%emt 0:00:08]} 7. Bxd7+ {[%emt 0:00:51]} Bxd7 {[%emt 0:00:17]} 8. dxc5 {[%emt 0:00:48]} dxc5 {[%emt 0:01:04]} 9. Bxc5 {[%emt 0:00:26]} Qc7 {[%emt 0:01:59]} 10. Bd4 {[%emt 0:01:02]} e5 {[%emt 0:02:01]} 11. Be3 {[%emt 0:00:19]} Nf6 {[%emt 0:04:10]} 12. O-O {[%emt 0:02:06]} Nxe4 {[%emt 0:04:57]} 13. Re1 {[%emt 0:00:23]} f5 {[%emt 0:07:54]} 14. Qb3 {[%emt 0:03:38]} b5 {[%emt 0:09:59]} 15. Nbd2 {[%emt 0:01:39]} Nc5 {[%emt 0:04:13]} 16. Qd5 {[%emt 0:03:20]} Rc8 {[%emt 0:03:46]} 17. Nxe5 {[%emt 0:01:46]} Be6 {[%emt 0:03:47]} 18. Qxc5 {[%emt 0:02:46]} Bxe5 {[%emt 0:01:55]} 19. Qxc7 {[%emt 0:00:49]} Rxc7 {[%emt 0:01:18]} 20. Nf3 {[%emt 0:02:19]} Bf6 {[%emt 0:01:39]} 21. Nd4 {[%emt 0:04:10]} Re7 {[%emt 0:02:56]} 22. Nxe6 {[%emt 0:01:17]} Rxe6 {[%emt 0:00:23]} 23. Bc5 {[%emt 0:00:50]} Kf7 {[%emt 0:00:48]} 24. Rxe6 {[%emt 0:00:11]} Kxe6 {[%emt 0:00:09]} 25. Rd1 {[%emt 0:00:14]} Be7 {[%emt 0:03:11]} 26. Re1+ {[%emt 0:00:16]} Kd5 {[%emt 0:00:11]} 27. Bxe7 {[%emt 0:00:12]} Re8 {[%emt 0:00:07]} 28. Kf1 {[%emt 0:00:05]} Kc6 {[%emt 0:00:59]} 29. Bg5 {[%emt 0:00:19]} Rh8 {[%emt 0:00:24]} 30. Re7 {[%emt 0:00:22]} h6 {[%emt 0:02:30]} 31. Bf6 {[%emt 0:01:52]} Rg8 {[%emt 0:00:38]} 32. Ke2 {[%emt 0:00:20]} h5 {[%emt 0:00:39]} 33. Bg5 {[%emt 0:00:16]} Kd5 {[%emt 0:01:44]} 34. Kd3 {[%emt 0:00:34]} Kc5 {[%emt 0:00:23]} 35. Re6 {[%emt 0:00:18]} a5 {[%emt 0:00:24]} 36. Re5+ {[%emt 0:00:21]} Kc6 {[%emt 0:00:21]} 37. Kd4 {[%emt 0:00:09]} Rg7 {[%emt 0:00:37]} 38. Re6+ {[%emt 0:00:20]} Kd7 {[%emt 0:00:16]} 39. Kd5 {[%emt 0:00:47]} b4 {[%emt 0:00:47]} 40. Ra6 {[%emt 0:00:16]} bxc3 {[%emt 0:00:29]} 41. bxc3 {[%emt 0:00:06]} Kc8 {[%emt 0:00:28]} 42. Rxa5 {[%emt 0:03:18]} 1-0